[Event "Božićni turnir u VaraždinskimToplicama 26.12.2025."]
[Site "Varazdinske Toplice, Croatia"]
[Date "2025.12.26"]
[Round "4.11"]
[White "Krainc, Luka"]
[Black "Sardi, Darko"]
[Result "0-1"]
[TimeControl "10"]
[WhiteFideId "14510723"]
[BlackFideId "14511100"]
[WhiteElo "1840"]
[BlackElo "1905"]

1. Nc3 {[%clk 00:09:57]} {[%emt 00:00:02]} Nf6 {[%clk 00:09:59]} {[%emt
00:00:02]} 2. e4 {[%clk 00:09:56]} {[%emt 00:00:01]} d6 {[%clk 00:09:57]} 3. f4
{[%clk 00:09:55]} {[%emt 00:00:01]} g6 {[%clk 00:09:56]} {[%emt 00:00:01]} 4.
Nf3 {[%clk 00:09:53]} {[%emt 00:00:02]} Bg7 {[%clk 00:09:55]} {[%emt 00:00:01]}
5. Bc4 {[%clk 00:09:52]} {[%emt 00:00:01]} O-O {[%clk 00:09:53]} {[%emt
00:00:02]} 6. O-O {[%clk 00:09:51]} {[%emt 00:00:02]} c6 {[%clk 00:09:50]}
{[%emt 00:00:03]} 7. e5 {[%clk 00:09:46]} {[%emt 00:00:04]} Ng4 {[%clk
00:09:35]} {[%emt 00:00:15]} 8. d4 {[%clk 00:09:38]} {[%emt 00:00:08]} dxe5
{[%clk 00:09:30]} {[%emt 00:00:06]} 9. fxe5 {[%clk 00:09:32]} {[%emt 00:00:06]}
b5 {[%clk 00:09:18]} {[%emt 00:00:11]} 10. Bb3 {[%clk 00:09:29]} {[%emt
00:00:04]} a5 {[%clk 00:09:16]} {[%emt 00:00:01]} 11. Ng5 {[%clk 00:09:17]}
{[%emt 00:00:12]} Nh6 {[%clk 00:09:06]} {[%emt 00:00:10]} 12. a4 {[%clk
00:09:08]} {[%emt 00:00:09]} b4 {[%clk 00:08:55]} {[%emt 00:00:11]} 13. Nce4
{[%clk 00:09:00]} {[%emt 00:00:08]} Bf5 {[%clk 00:08:49]} {[%emt 00:00:06]} 14.
Ng3 {[%clk 00:08:31]} {[%emt 00:00:30]} Bg4 {[%clk 00:08:37]} {[%emt 00:00:12]}
15. Qd3 {[%clk 00:08:07]} {[%emt 00:00:23]} Na6 {[%clk 00:08:19]} {[%emt
00:00:18]} 16. h3 {[%clk 00:08:06]} {[%emt 00:00:01]} Bd7 {[%clk 00:08:00]}
{[%emt 00:00:18]} 17. c3 {[%clk 00:07:39]} {[%emt 00:00:28]} e6 {[%clk
00:07:57]} {[%emt 00:00:03]} 18. N5e4 {[%clk 00:07:27]} {[%emt 00:00:12]} Ra7
{[%clk 00:07:37]} {[%emt 00:00:19]} 19. Nd6 {[%clk 00:06:58]} {[%emt 00:00:30]}
c5 {[%clk 00:06:33]} {[%emt 00:01:05]} 20. Nge4 {[%clk 00:06:30]} {[%emt
00:00:28]} Bc6 {[%clk 00:06:19]} {[%emt 00:00:14]} 21. Nxc5 {[%clk 00:06:03]}
{[%emt 00:00:26]} Nxc5 {[%clk 00:06:16]} {[%emt 00:00:04]} 22. dxc5 {[%clk
00:06:01]} {[%emt 00:00:02]} bxc3 {[%clk 00:06:06]} {[%emt 00:00:09]} 23. Qxc3
{[%clk 00:05:46]} {[%emt 00:00:15]} Qh4 {[%clk 00:05:41]} {[%emt 00:00:24]} 24.
Rf4 {[%clk 00:05:43]} {[%emt 00:00:04]} Qh5 {[%clk 00:05:33]} {[%emt 00:00:08]}
25. Bc2 {[%clk 00:05:22]} {[%emt 00:00:22]} Bxe5 {[%clk 00:05:24]} {[%emt
00:00:09]} 26. Qe3 {[%clk 00:05:03]} {[%emt 00:00:18]} Bxf4 {[%clk 00:04:51]}
{[%emt 00:00:34]} 27. Qxf4 {[%clk 00:05:02]} Nf5 {[%clk 00:04:48]} {[%emt
00:00:02]} 28. Bxf5 {[%clk 00:05:01]} {[%emt 00:00:02]} exf5 {[%clk 00:04:41]}
{[%emt 00:00:07]} 29. Bd2 {[%clk 00:04:43]} {[%emt 00:00:18]} Qe2 {[%clk
00:04:29]} {[%emt 00:00:11]} 30. Qf2 {[%clk 00:04:15]} {[%emt 00:00:28]} Qxf2+
{[%clk 00:04:25]} {[%emt 00:00:05]} 31. Kxf2 {[%clk 00:04:14]} {[%emt
00:00:01]} Rb8 {[%clk 00:04:15]} {[%emt 00:00:09]} 32. Bc3 {[%clk 00:04:14]}
{[%emt 00:00:01]} h5 {[%clk 00:03:59]} {[%emt 00:00:16]} 33. Re1 {[%clk
00:04:11]} {[%emt 00:00:02]} Bxa4 {[%clk 00:03:56]} {[%emt 00:00:04]} 34. Kf3
{[%clk 00:03:59]} {[%emt 00:00:11]} Bc6+ {[%clk 00:03:54]} {[%emt 00:00:02]} 35.
Kf2 {[%clk 00:03:51]} {[%emt 00:00:08]} a4 {[%clk 00:03:53]} {[%emt 00:00:01]}
36. g3 {[%clk 00:03:45]} {[%emt 00:00:06]} a3 {[%clk 00:03:52]} {[%emt
00:00:01]} 37. bxa3 {[%clk 00:03:44]} Rxa3 {[%clk 00:03:45]} {[%emt 00:00:07]}
38. Be5 {[%clk 00:03:32]} {[%emt 00:00:13]} Rf3+ {[%clk 00:03:35]} {[%emt
00:00:09]} 39. Ke2 {[%clk 00:03:25]} {[%emt 00:00:08]} Rbb3 {[%clk 00:03:27]}
{[%emt 00:00:08]} 40. Ra1 {[%clk 00:03:10]} {[%emt 00:00:14]} Rfe3+ {[%clk
00:03:22]} {[%emt 00:00:06]} 41. Kd2 {[%clk 00:03:01]} {[%emt 00:00:09]} Rxe5
{[%clk 00:03:20]} {[%emt 00:00:02]} 0-1

[Event "Božićni turnir u VaraždinskimToplicama 26.12.2025."]
[Site "Varazdinske Toplice, Croatia"]
[Date "2025.12.26"]
[Round "4.12"]
[White "Brnadic, Grga"]
[Black "Hostnjak, Hrvoje"]
[Result "0-1"]
[TimeControl "10"]
[WhiteFideId "14578999"]
[BlackFideId "14551470"]
[WhiteElo "1387"]
[BlackElo "1704"]

1. e4 {[%clk 00:09:59]} {[%emt 00:07:28]} c6 {[%clk 00:09:59]} {[%emt
00:00:01]} 2. d4 {[%clk 00:09:54]} {[%emt 00:00:04]} d5 {[%clk 00:09:58]} 3. e5
{[%clk 00:09:54]} {[%emt 00:00:01]} c5 {[%clk 00:09:57]} 4. dxc5 {[%clk
00:09:53]} Nc6 {[%clk 00:09:57]} 5. Nf3 {[%clk 00:09:52]} e6 {[%clk 00:09:56]}
{[%emt 00:00:01]} 6. a3 {[%clk 00:09:50]} {[%emt 00:00:02]} Bxc5 {[%clk
00:09:54]} {[%emt 00:00:02]} 7. b4 {[%clk 00:09:50]} Bb6 {[%clk 00:09:53]} 8.
Bb2 {[%clk 00:09:49]} f6 {[%clk 00:09:50]} {[%emt 00:00:03]} 9. Nbd2 {[%clk
00:09:36]} {[%emt 00:00:13]} Nge7 {[%clk 00:09:10]} {[%emt 00:00:40]} 10. Bd3
{[%clk 00:09:33]} {[%emt 00:00:03]} Ng6 {[%clk 00:09:00]} {[%emt 00:00:10]} 11.
exf6 {[%clk 00:09:13]} {[%emt 00:00:19]} gxf6 {[%clk 00:08:59]} {[%emt
00:00:02]} 12. Bxg6+ {[%clk 00:08:54]} {[%emt 00:00:19]} hxg6 {[%clk 00:08:57]}
{[%emt 00:00:02]} 13. Nb3 {[%clk 00:08:53]} Kf7 {[%clk 00:08:41]} {[%emt
00:00:15]} 14. Nbd4 {[%clk 00:08:34]} {[%emt 00:00:19]} e5 {[%clk 00:08:34]}
{[%emt 00:00:07]} 15. Nxc6 {[%clk 00:08:11]} {[%emt 00:00:23]} bxc6 {[%clk
00:08:33]} {[%emt 00:00:02]} 16. Qd2 {[%clk 00:08:09]} {[%emt 00:00:02]} a5
{[%clk 00:08:17]} {[%emt 00:00:16]} 17. bxa5 {[%clk 00:07:41]} {[%emt
00:00:27]} Bxa5 {[%clk 00:08:06]} {[%emt 00:00:12]} 18. Bc3 {[%clk 00:07:41]}
Bc7 {[%clk 00:07:22]} {[%emt 00:00:44]} 19. h3 {[%clk 00:07:17]} {[%emt
00:00:24]} Ba6 {[%clk 00:07:08]} {[%emt 00:00:14]} 20. Ng1 {[%clk 00:07:00]}
{[%emt 00:00:17]} c5 {[%clk 00:06:47]} {[%emt 00:00:21]} 21. Rb1 {[%clk
00:05:12]} {[%emt 00:01:47]} d4 {[%clk 00:05:24]} {[%emt 00:01:24]} 22. Ba1
{[%clk 00:05:11]} {[%emt 00:00:01]} Ba5 {[%clk 00:05:16]} {[%emt 00:00:07]} 23.
c3 {[%emt 00:00:02]} e4 {[%clk 00:05:02]} {[%emt 00:00:13]} 24. Ne2 {[%clk
00:04:40]} {[%emt 00:00:31]} e3 {[%clk 00:04:54]} {[%emt 00:00:07]} 25. fxe3
{[%clk 00:04:12]} {[%emt 00:00:29]} Re8 {[%clk 00:04:48]} {[%emt 00:00:05]} 26.
O-O {[%clk 00:03:32]} {[%emt 00:00:40]} Rxe3 {[%clk 00:04:37]} {[%emt
00:00:11]} 27. Rf2 {[%clk 00:03:32]} Qe7 {[%clk 00:04:23]} {[%emt 00:00:13]} 28.
Qa2+ {[%clk 00:03:20]} {[%emt 00:00:12]} Kg7 {[%clk 00:04:19]} {[%emt
00:00:04]} 29. c4 {[%clk 00:02:53]} {[%emt 00:00:27]} Re8 {[%clk 00:04:02]}
{[%emt 00:00:17]} 30. Nf4 {[%clk 00:02:22]} {[%emt 00:00:31]} Re1+ {[%clk
00:03:56]} {[%emt 00:00:07]} 31. Rxe1 {[%clk 00:02:21]} Qxe1+ {[%clk 00:03:54]}
{[%emt 00:00:01]} 32. Rf1 {[%clk 00:02:20]} Qe3+ {[%clk 00:03:50]} {[%emt
00:00:04]} 33. Kh1 {[%clk 00:01:42]} {[%emt 00:00:39]} Bb7 {[%clk 00:03:35]}
{[%emt 00:00:14]} 34. Nd5 {[%clk 00:01:05]} {[%emt 00:00:38]} Bxd5 {[%clk
00:03:04]} {[%emt 00:00:31]} 35. cxd5 {[%emt 00:00:03]} Bc7 {[%clk 00:03:00]}
{[%emt 00:00:02]} 36. g4 {[%clk 00:00:29]} {[%emt 00:00:35]} Qxh3+ {[%clk
00:02:57]} {[%emt 00:00:03]} 37. Kg1 {[%clk 00:00:28]} Qxg4+ {[%clk 00:02:52]}
{[%emt 00:00:05]} 38. Kh1 {[%clk 00:00:27]} Re2 {[%clk 00:02:51]} {[%emt
00:00:02]} 0-1

[Event "Božićni turnir u VaraždinskimToplicama 26.12.2025."]
[Site "Varazdinske Toplice, Croatia"]
[Date "2025.12.26"]
[Round "4.13"]
[White "Kodric, Vladimir"]
[Black "Fucek, Gordan"]
[Result "1-0"]
[TimeControl "10"]
[WhiteFideId "14604264"]
[BlackFideId "14513030"]
[WhiteElo "1920"]
[BlackElo "1762"]

1. d4 {[%clk 00:09:58]} {[%emt 00:00:01]} Nf6 {[%clk 00:09:59]} {[%emt
00:00:02]} 2. c3 {[%clk 00:09:56]} {[%emt 00:00:01]} g6 {[%clk 00:09:58]}
{[%emt 00:00:02]} 3. Bf4 {[%clk 00:09:55]} Bg7 {[%clk 00:09:55]} {[%emt
00:00:02]} 4. h3 {[%clk 00:09:54]} d6 {[%clk 00:09:53]} {[%emt 00:00:04]} 5.
Nf3 {[%clk 00:09:52]} {[%emt 00:00:02]} O-O {[%clk 00:09:50]} {[%emt 00:00:03]}
6. e3 {[%clk 00:09:51]} c5 {[%clk 00:09:43]} {[%emt 00:00:07]} 7. Be2 {[%clk
00:09:49]} {[%emt 00:00:02]} Nbd7 {[%clk 00:09:32]} {[%emt 00:00:11]} 8. O-O
{[%clk 00:09:46]} {[%emt 00:00:03]} a6 {[%clk 00:09:28]} {[%emt 00:00:03]} 9.
Nbd2 {[%clk 00:09:41]} {[%emt 00:00:05]} b5 {[%clk 00:09:22]} {[%emt 00:00:07]}
10. dxc5 {[%clk 00:09:30]} {[%emt 00:00:10]} Nxc5 {[%clk 00:09:13]} {[%emt
00:00:09]} 11. Bh2 {[%clk 00:09:26]} {[%emt 00:00:04]} Bf5 {[%clk 00:08:54]}
{[%emt 00:00:19]} 12. Nb3 {[%clk 00:09:24]} {[%emt 00:00:02]} Qb6 {[%clk
00:08:29]} {[%emt 00:00:25]} 13. Nfd4 {[%clk 00:09:16]} {[%emt 00:00:08]} Bd7
{[%clk 00:08:14]} {[%emt 00:00:15]} 14. Bf3 {[%clk 00:09:13]} {[%emt 00:00:03]}
Rac8 {[%clk 00:08:00]} {[%emt 00:00:12]} 15. Nd2 {[%clk 00:08:52]} {[%emt
00:00:23]} e5 {[%clk 00:07:32]} {[%emt 00:00:29]} 16. N4b3 {[%clk 00:08:48]}
{[%emt 00:00:04]} Nd3 {[%clk 00:07:13]} {[%emt 00:00:18]} 17. Rb1 {[%clk
00:08:38]} {[%emt 00:00:10]} a5 {[%clk 00:06:49]} {[%emt 00:00:24]} 18. Ne4
{[%clk 00:08:23]} {[%emt 00:00:14]} Nxe4 {[%clk 00:06:34]} {[%emt 00:00:16]} 19.
Bxe4 {[%clk 00:08:22]} {[%emt 00:00:02]} Nc5 {[%clk 00:06:20]} {[%emt
00:00:14]} 20. Bd5 {[%clk 00:08:19]} {[%emt 00:00:02]} Bf5 {[%clk 00:06:09]}
{[%emt 00:00:10]} 21. Nxc5 {[%clk 00:08:07]} {[%emt 00:00:14]} Bxb1 {[%clk
00:06:02]} {[%emt 00:00:07]} 22. Nd7 {[%clk 00:08:05]} {[%emt 00:00:01]} Qc7
{[%clk 00:05:30]} {[%emt 00:00:32]} 23. Nxf8 {[%clk 00:07:58]} {[%emt
00:00:06]} Bf5 {[%clk 00:04:39]} {[%emt 00:00:51]} 24. e4 {[%clk 00:07:57]}
{[%emt 00:00:02]} Bxh3 {[%clk 00:04:02]} {[%emt 00:00:38]} 25. gxh3 {[%clk
00:07:42]} {[%emt 00:00:13]} Bxf8 {[%clk 00:03:59]} {[%emt 00:00:04]} 26. f4
{[%clk 00:07:32]} {[%emt 00:00:10]} Qc5+ {[%clk 00:03:38]} {[%emt 00:00:22]} 27.
Kg2 {[%clk 00:07:29]} {[%emt 00:00:01]} Rc7 {[%clk 00:03:15]} {[%emt 00:00:24]}
28. fxe5 {[%clk 00:07:27]} {[%emt 00:00:02]} dxe5 {[%clk 00:03:14]} {[%emt
00:00:02]} 29. Bxe5 {[%clk 00:07:24]} {[%emt 00:00:03]} Rd7 {[%clk 00:02:48]}
{[%emt 00:00:25]} 30. Qf3 {[%clk 00:07:13]} {[%emt 00:00:10]} Qa7 {[%clk
00:02:11]} {[%emt 00:00:38]} 31. Qf6 {[%clk 00:07:08]} {[%emt 00:00:04]} 1-0

[Event "Božićni turnir u VaraždinskimToplicama 26.12.2025."]
[Site "Varazdinske Toplice, Croatia"]
[Date "2025.12.26"]
[Round "4.15"]
[White "Bedekovic, Jakov"]
[Black "Hanjs, Vladimir"]
[Result "1-0"]
[TimeControl "10"]
[WhiteFideId "14596458"]
[BlackFideId "14531267"]
[WhiteElo "1965"]
[BlackElo "1777"]

1. e4 {[%clk 00:09:59]} e6 {[%clk 00:09:59]} {[%emt 00:00:01]} 2. d4 {[%clk
00:09:58]} {[%emt 00:00:02]} d5 {[%clk 00:09:58]} {[%emt 00:00:01]} 3. Nd2
{[%clk 00:09:56]} c5 {[%clk 00:09:57]} {[%emt 00:00:01]} 4. exd5 {[%clk
00:09:52]} {[%emt 00:00:05]} exd5 {[%clk 00:09:56]} 5. Bb5+ {[%clk 00:09:49]}
{[%emt 00:00:03]} Nc6 {[%clk 00:09:53]} {[%emt 00:00:03]} 6. Ngf3 {[%clk
00:09:47]} {[%emt 00:00:01]} Nf6 {[%clk 00:09:47]} {[%emt 00:00:06]} 7. O-O
{[%clk 00:09:44]} {[%emt 00:00:03]} Bd6 {[%clk 00:09:45]} {[%emt 00:00:02]} 8.
Re1+ {[%clk 00:09:42]} {[%emt 00:00:03]} Be6 {[%clk 00:09:44]} 9. dxc5 {[%clk
00:09:31]} {[%emt 00:00:12]} Bxc5 {[%clk 00:09:39]} {[%emt 00:00:05]} 10. Nb3
{[%clk 00:09:16]} {[%emt 00:00:14]} Bb6 {[%clk 00:09:38]} {[%emt 00:00:02]} 11.
Ng5 {[%clk 00:09:08]} {[%emt 00:00:07]} Qd7 {[%clk 00:09:13]} {[%emt 00:00:25]}
12. Nxe6 {[%clk 00:08:53]} {[%emt 00:00:16]} fxe6 {[%clk 00:09:11]} {[%emt
00:00:01]} 13. Qe2 {[%clk 00:08:40]} {[%emt 00:00:13]} O-O {[%clk 00:09:05]}
{[%emt 00:00:06]} 14. Bxc6 {[%clk 00:08:28]} {[%emt 00:00:12]} bxc6 {[%clk
00:08:32]} {[%emt 00:00:33]} 15. Be3 {[%clk 00:08:24]} {[%emt 00:00:04]} Rae8
{[%clk 00:08:17]} {[%emt 00:00:13]} 16. Nc5 {[%clk 00:08:22]} {[%emt 00:00:04]}
Qd6 {[%clk 00:07:55]} {[%emt 00:00:22]} 17. Nd3 {[%clk 00:07:45]} {[%emt
00:00:37]} e5 {[%emt 00:00:25]} 18. Rad1 {[%clk 00:07:37]} c5 {[%clk 00:06:39]}
{[%emt 00:00:59]} 19. f3 {[%clk 00:07:06]} {[%emt 00:00:31]} e4 {[%clk
00:05:59]} {[%emt 00:00:41]} 20. Nf4 {[%clk 00:06:42]} {[%emt 00:00:23]} d4
{[%clk 00:05:45]} {[%emt 00:00:14]} 21. Qc4+ {[%clk 00:06:35]} {[%emt
00:00:07]} Kh8 {[%clk 00:05:35]} {[%emt 00:00:08]} 22. fxe4 {[%clk 00:06:19]}
{[%emt 00:00:19]} Nxe4 {[%clk 00:05:18]} {[%emt 00:00:17]} 23. Nh3 {[%clk
00:05:09]} {[%emt 00:01:09]} Qc6 {[%clk 00:04:25]} {[%emt 00:00:52]} 24. Bxd4
{[%clk 00:04:33]} {[%emt 00:00:37]} Qg6 {[%clk 00:03:53]} {[%emt 00:00:32]} 25.
Be3 {[%clk 00:04:16]} {[%emt 00:00:17]} Nd6 {[%clk 00:03:35]} {[%emt 00:00:18]}
26. Qd3 {[%clk 00:04:00]} {[%emt 00:00:17]} Qxd3 {[%clk 00:03:20]} {[%emt
00:00:14]} 27. Rxd3 {[%clk 00:03:52]} {[%emt 00:00:08]} Nc4 {[%clk 00:02:37]}
{[%emt 00:00:43]} 28. Bf2 {[%clk 00:03:05]} {[%emt 00:00:47]} Rxe1+ {[%clk
00:02:26]} {[%emt 00:00:11]} 29. Bxe1 {[%clk 00:03:04]} Nxb2 {[%clk 00:02:22]}
{[%emt 00:00:06]} 30. Rd7 {[%clk 00:02:57]} {[%emt 00:00:06]} Nc4 {[%clk
00:02:12]} {[%emt 00:00:10]} 31. Bc3 {[%clk 00:02:52]} {[%emt 00:00:06]} Rg8
{[%clk 00:01:52]} {[%emt 00:00:19]} 32. Ng5 {[%clk 00:02:51]} {[%emt 00:00:02]}
h6 {[%clk 00:01:40]} {[%emt 00:00:11]} 33. Ne6 {[%clk 00:02:49]} {[%emt
00:00:02]} Ne5 {[%clk 00:01:01]} {[%emt 00:00:39]} 34. Bxe5 {[%clk 00:02:40]}
{[%emt 00:00:09]} Re8 {[%clk 00:00:44]} {[%emt 00:00:17]} 35. Bxg7+ {[%clk
00:02:37]} {[%emt 00:00:03]} Kg8 {[%clk 00:00:39]} {[%emt 00:00:04]} 36. Rd6
{[%clk 00:02:03]} {[%emt 00:00:34]} c4+ {[%clk 00:00:36]} {[%emt 00:00:04]} 37.
Kf1 {[%clk 00:02:01]} {[%emt 00:00:02]} Rxe6 {[%clk 00:00:35]} {[%emt
00:00:02]} 38. Rxe6 {[%clk 00:01:59]} {[%emt 00:00:01]} Kxg7 {[%clk 00:00:33]}
{[%emt 00:00:01]} 39. Ke2 {[%clk 00:01:58]} {[%emt 00:00:03]} Kf7 {[%clk
00:00:32]} {[%emt 00:00:01]} 40. Rc6 {[%clk 00:01:56]} {[%emt 00:00:01]} h5
{[%clk 00:00:31]} 41. Rxc4 {[%clk 00:01:54]} {[%emt 00:00:01]} Ke6 {[%clk
00:00:30]} {[%emt 00:00:02]} 42. Kf3 {[%clk 00:01:53]} {[%emt 00:00:01]} Kf5
{[%clk 00:00:28]} {[%emt 00:00:02]} 43. h3 {[%clk 00:01:52]} {[%emt 00:00:01]}
Kg5 {[%clk 00:00:27]} 44. g4 {[%clk 00:01:51]} {[%emt 00:00:01]} hxg4+ {[%clk
00:00:26]} {[%emt 00:00:02]} 45. hxg4 {[%clk 00:01:50]} Bg1 {[%clk 00:00:17]}
{[%emt 00:00:10]} 46. Ra4 {[%clk 00:01:46]} {[%emt 00:00:03]} Bb6 {[%clk
00:00:15]} {[%emt 00:00:02]} 47. c4 {[%clk 00:01:41]} {[%emt 00:00:06]} Bc5
{[%clk 00:00:13]} {[%emt 00:00:02]} 48. Ra5 {[%clk 00:01:39]} {[%emt 00:00:02]}
1-0

[Event "Božićni turnir u VaraždinskimToplicama 26.12.2025."]
[Site "Varazdinske Toplice, Croatia"]
[Date "2025.12.26"]
[Round "5.1"]
[White "Mravunac, Damir"]
[Black "Segovic, Goran"]
[Result "0-1"]
[TimeControl "10"]
[WhiteFideId "14502810"]
[BlackFideId "14508842"]
[WhiteElo "2044"]
[BlackElo "2324"]

1. e4 {[%clk 00:09:58]} {[%emt 00:00:02]} e5 {[%clk 00:10:00]} 2. Bc4 {[%clk
00:09:56]} {[%emt 00:00:02]} Nf6 {[%clk 00:09:58]} {[%emt 00:00:02]} 3. Qf3
{[%clk 00:09:40]} {[%emt 00:00:16]} Bc5 {[%clk 00:09:47]} {[%emt 00:00:11]} 4.
Nc3 {[%clk 00:09:27]} {[%emt 00:00:13]} c6 {[%clk 00:09:44]} {[%emt 00:00:03]}
5. Nge2 {[%clk 00:09:20]} {[%emt 00:00:06]} b5 {[%clk 00:09:33]} {[%emt
00:00:12]} 6. Bb3 {[%clk 00:09:17]} {[%emt 00:00:03]} b4 {[%clk 00:09:31]}
{[%emt 00:00:02]} 7. Na4 {[%clk 00:09:09]} {[%emt 00:00:08]} Be7 {[%clk
00:09:23]} {[%emt 00:00:08]} 8. d4 {[%clk 00:09:00]} {[%emt 00:00:09]} d6
{[%clk 00:09:20]} {[%emt 00:00:03]} 9. h3 {[%clk 00:08:52]} {[%emt 00:00:07]}
Nbd7 {[%clk 00:09:12]} {[%emt 00:00:08]} 10. c3 {[%clk 00:08:38]} {[%emt
00:00:14]} a5 {[%clk 00:09:07]} {[%emt 00:00:06]} 11. g4 {[%clk 00:08:26]}
{[%emt 00:00:12]} O-O {[%clk 00:09:03]} {[%emt 00:00:04]} 12. Be3 {[%clk
00:08:16]} {[%emt 00:00:10]} Ba6 {[%clk 00:08:54]} {[%emt 00:00:09]} 13. Ng3
{[%clk 00:07:58]} {[%emt 00:00:18]} bxc3 {[%clk 00:08:35]} {[%emt 00:00:19]} 14.
Nxc3 {[%clk 00:07:40]} {[%emt 00:00:17]} exd4 {[%clk 00:08:31]} {[%emt
00:00:05]} 15. Bxd4 {[%clk 00:07:36]} {[%emt 00:00:04]} c5 {[%clk 00:08:12]}
{[%emt 00:00:19]} 16. Bxf6 {[%clk 00:07:14]} {[%emt 00:00:22]} Bxf6 {[%clk
00:08:11]} {[%emt 00:00:01]} 17. O-O-O {[%clk 00:06:32]} {[%emt 00:00:42]} Ne5
{[%emt 00:00:45]} 18. Qe3 {[%clk 00:06:22]} {[%emt 00:00:32]} c4 {[%clk
00:08:50]} {[%emt 00:00:19]} 19. Bc2 {[%clk 00:06:16]} {[%emt 00:00:05]} Rb8
{[%clk 00:08:42]} {[%emt 00:00:08]} 20. Nh5 {[%clk 00:05:49]} {[%emt 00:00:27]}
Nd3+ {[%clk 00:08:12]} {[%emt 00:00:30]} 21. Bxd3 {[%clk 00:04:04]} {[%emt
00:01:45]} Bxc3 {[%clk 00:08:11]} {[%emt 00:00:01]} 22. bxc3 {[%clk 00:04:03]}
{[%emt 00:00:02]} cxd3 {[%clk 00:08:10]} {[%emt 00:00:01]} 23. Qd4 {[%clk
00:03:58]} {[%emt 00:00:05]} f6 {[%clk 00:08:08]} {[%emt 00:00:01]} 24. g5
{[%clk 00:03:48]} {[%emt 00:00:10]} Qe8 {[%clk 00:07:56]} {[%emt 00:00:12]} 25.
Qd5+ {[%clk 00:03:35]} {[%emt 00:00:13]} Kh8 {[%clk 00:07:55]} {[%emt
00:00:01]} 26. gxf6 {[%clk 00:03:31]} {[%emt 00:00:05]} g6 {[%clk 00:07:38]}
{[%emt 00:00:15]} 27. f7 {[%clk 00:03:24]} {[%emt 00:00:09]} Qxf7 {[%clk
00:07:15]} {[%emt 00:00:23]} 28. Qd4+ {[%clk 00:02:19]} {[%emt 00:01:05]} Kg8
{[%clk 00:07:13]} {[%emt 00:00:02]} 29. Rd2 {[%clk 00:02:18]} Qb7 {[%clk
00:06:40]} {[%emt 00:00:33]} 30. Qd5+ {[%clk 00:02:12]} {[%emt 00:00:07]} Qxd5
{[%clk 00:06:37]} {[%emt 00:00:03]} 31. exd5 {[%clk 00:02:11]} {[%emt
00:00:01]} gxh5 {[%clk 00:06:35]} {[%emt 00:00:01]} 32. Rg1+ {[%clk 00:02:10]}
{[%emt 00:00:02]} Kf7 {[%clk 00:06:34]} {[%emt 00:00:01]} 33. Rg5 {[%clk
00:01:29]} {[%emt 00:00:40]} Rg8 {[%clk 00:06:32]} {[%emt 00:00:02]} 34. f4
{[%clk 00:01:22]} {[%emt 00:00:07]} Rxg5 {[%clk 00:06:25]} {[%emt 00:00:08]} 35.
fxg5 {[%clk 00:01:21]} Kg6 {[%clk 00:06:23]} {[%emt 00:00:03]} 36. h4 {[%clk
00:01:14]} {[%emt 00:00:06]} Rf8 {[%clk 00:06:21]} {[%emt 00:00:02]} 37. Kb2
{[%clk 00:00:59]} {[%emt 00:00:15]} Rf4 {[%clk 00:06:15]} {[%emt 00:00:07]} 38.
c4 {[%clk 00:00:46]} {[%emt 00:00:13]} Bxc4 {[%clk 00:06:09]} {[%emt 00:00:06]}
39. Kc3 {[%clk 00:00:44]} {[%emt 00:00:01]} Rxh4 {[%clk 00:06:07]} {[%emt
00:00:02]} 40. Kd4 {[%emt 00:00:07]} 0-1